fUST/lending_fUST_20251117
["ID","MTS","AMOUNT","RATE_DAILY","PERIOD"]
[394172345,1763347839710,-151.0,0.00048696,120]
[394172346,1763347839719,-151.0,0.00048696,120]
[394172347,1763347839729,-243.173132,0.00048696,120]
[394172348,1763347839738,-171.715225,0.00048696,120]
[394172349,1763347839747,-288.464106,0.00048696,120]
[394172350,1763347839756,-151.0,0.00048696,2]
[394172351,1763347839765,-151.0,0.00048696,2]
[394172352,1763347839774,-151.0,0.00048696,2]
[394172353,1763347839788,-151.0,0.00048696,120]
[394172354,1763347839797,-151.0,0.00048696,120]
[394172355,1763347839807,-151.0,0.00048696,2]
[394172356,1763347839817,-151.0,0.00048696,120]
[394172357,1763347839830,-151.0,0.00048696,120]
[394172358,1763347839840,-151.0,0.00048696,120]
[394172359,1763347839850,-151.0,0.00048696,15]
[394172360,1763347839861,-151.0,0.00048696,15]
[394172361,1763347839871,-152.058896,0.00048696,120]
[394172362,1763347839882,-151.0,0.00048696,120]
[394172363,1763347839892,-151.0,0.00048696,120]
[394172364,1763347839903,-151.0,0.00048696,120]
[394172365,1763347839914,-237.457625,0.00048696,120]
[394172366,1763347839924,-151.0,0.00048696,120]
[394172367,1763347839934,-237.457625,0.00048696,120]
[394172368,1763347839943,-151.0,0.00048696,120]
[394172369,1763347839952,-244.871368,0.00048696,120]
[394172370,1763347839962,-237.457625,0.00048696,120]
[394172371,1763347839971,-151.0,0.00048696,120]
[394172372,1763347839980,-237.457625,0.00048696,120]
[394172373,1763347839990,-151.0,0.00048696,120]
[394172374,1763347840000,-151.0,0.00048696,120]
[394172375,1763347840009,-151.0,0.00048696,120]
[394172376,1763347840019,-169.147943,0.00048696,120]
[394172377,1763347840028,-151.0,0.00048696,120]
[394172378,1763347840037,-483.508934,0.00048696,120]
[394172379,1763347840047,-483.508934,0.00048696,120]
[394172380,1763347840056,-483.508934,0.00048696,120]
[394172381,1763347840065,-151.0,0.00048696,30]
[394172382,1763347840074,-483.508934,0.00048696,120]
[394172383,1763347840083,-151.0,0.00048696,120]
[394172384,1763347840092,-164.809455,0.00048696,120]
[394172385,1763347840101,-151.0,0.00048696,120]
[394172386,1763347840110,-151.0,0.00048696,120]
[394172387,1763347840119,-151.0,0.00048696,120]
[394172388,1763347840128,-157.1355,0.00048696,120]
[394172389,1763347840137,-151.0,0.00048696,120]
[394172390,1763347840147,-151.0,0.00048696,120]
[394172392,1763347840156,-151.0,0.00048696,120]
[394172393,1763347840166,-151.0,0.00048696,120]
[394172394,1763347840175,-151.0,0.00048696,120]
[394172395,1763347840184,-151.0,0.00048696,120]
[394172396,1763347840194,-151.0,0.00048696,120]
[394172397,1763347840203,-151.0,0.00048696,120]
[394172399,1763347840212,-150.0,0.00048699,49]
[394172401,1763347840221,-1000.0,0.000487,120]
[394172403,1763347840230,-151.0,0.00048706,120]
[394172405,1763347840239,-151.0,0.00048706,120]
[394172407,1763347840248,-151.0,0.00048706,120]
[394172409,1763347840258,-151.0,0.00048706,120]
[394172411,1763347840267,-151.0,0.00048706,120]
[394172413,1763347840276,-151.0,0.00048706,120]
[394172415,1763347840286,-151.0,0.00048706,120]
[394172417,1763347840295,-151.0,0.00048706,60]
[394172419,1763347840304,-151.0,0.00048706,30]
[394172421,1763347840313,-154.477104,0.00048706,120]
[394172423,1763347840322,-151.0,0.00048706,120]
[394172425,1763347840331,-153.526501,0.00048706,120]
[394172427,1763347840339,-151.0,0.00048706,120]
[394172429,1763347840348,-151.0,0.00048706,120]
[394172431,1763347840357,-182.577132,0.00048706,120]
[394172433,1763347840365,-151.0,0.00048706,120]
[394172435,1763347840374,-182.577132,0.00048706,120]
[394172436,1763347840383,-182.577132,0.00048706,120]
[394172437,1763347840392,-182.577132,0.00048706,120]
[394172438,1763347840402,-151.0,0.00048706,120]
[394172439,1763347840412,-151.0,0.00048706,120]
[394172440,1763347840421,-208.442531,0.00048706,120]
[394172441,1763347840430,-208.442531,0.00048706,120]
[394172442,1763347840440,-208.442531,0.00048706,120]
[394172443,1763347840449,-208.442531,0.00048706,120]
[394172444,1763347840458,-151.0,0.00048706,120]
[394172445,1763347840468,-251.495585,0.00048706,120]
[394172446,1763347840477,-251.495585,0.00048706,120]
[394172447,1763347840486,-251.495585,0.00048706,120]
[394172448,1763347840495,-251.495585,0.00048706,120]
[394172449,1763347840504,-151.0,0.00048706,120]
[394172450,1763347840513,-151.0,0.00048706,120]
[394172451,1763347840523,-151.0,0.00048706,120]
[394172452,1763347840532,-151.0,0.00048706,120]
[394172453,1763347840541,-151.0,0.00048706,120]
[394172454,1763347840551,-151.0,0.00048706,120]
[394172455,1763347840560,-151.0,0.00048706,120]
[394172456,1763347840569,-151.0,0.00048706,120]
[394172457,1763347840579,-181.99971,0.00048706,120]
[394172458,1763347840589,-181.99971,0.00048706,120]
[394172459,1763347840598,-181.99971,0.00048706,120]
[394172460,1763347840608,-181.99971,0.00048706,120]
[394172461,1763347840617,-182.44774045,0.00048871,2]
[394172462,1763347840627,-250.0,0.00048873,10]
[394172463,1763347840636,-150.0,0.00048887,28]
[394172464,1763347840646,-186.367292,0.0004889,120]
[394172465,1763347840655,-186.367292,0.0004889,120]
[394172466,1763347840666,-186.367292,0.0004889,120]
[394172467,1763347840676,-186.367292,0.0004889,120]
[394172468,1763347840685,-151.0,0.0004889,120]
[394172469,1763347840694,-151.0,0.0004889,120]
[394172470,1763347840704,-252.058813,0.0004889,120]
[394172471,1763347840713,-151.0,0.0004889,90]
[394172472,1763347840723,-151.0,0.0004889,120]
[394172473,1763347840732,-160.771968,0.0004889,120]
[394172474,1763347840741,-5107.13979692,0.0004889,2]
[394172475,1763347840751,-187.95553136,0.000489,120]
[394172476,1763347840760,-87044.30390581,0.000489,120]
[394172477,1763347840769,-11537.80019329,0.000489,2]
[394172478,1763347840779,-151.0,0.000489,2]
[394172479,1763347840791,-151.0,0.000489,2]
[394172480,1763347840801,-151.0,0.000489,2]
[394172481,1763347840811,-151.0,0.000489,120]
[394172482,1763347840820,-151.0,0.000489,120]
[394172483,1763347840831,-151.0,0.000489,2]
[394172484,1763347840841,-151.0,0.000489,120]
[394172485,1763347840850,-153.19767,0.000489,120]
[394172486,1763347840863,-157.171853,0.000489,120]
[394172487,1763347840872,-151.0,0.000489,15]
[394172488,1763347840882,-151.0,0.000489,15]
[394172489,1763347840892,-151.0,0.000489,120]
[394172490,1763347840901,-151.0,0.000489,120]
[394172491,1763347840910,-151.0,0.000489,120]
[394172492,1763347840919,-237.457625,0.000489,120]
[394172493,1763347840928,-151.0,0.000489,120]
[394172494,1763347840937,-237.457625,0.000489,120]
[394172495,1763347840947,-151.0,0.000489,120]
[394172496,1763347840956,-237.457625,0.000489,120]
[394172497,1763347840965,-151.0,0.000489,120]
[394172498,1763347840974,-237.457625,0.000489,120]
[394172499,1763347840983,-151.0,0.000489,120]
[394172500,1763347840992,-151.0,0.000489,120]
[394172501,1763347841002,-153.691442,0.000489,120]
[394172502,1763347841011,-151.0,0.000489,120]
[394172503,1763347841020,-483.508934,0.000489,120]
[394172504,1763347841030,-483.508934,0.000489,120]
[394172505,1763347841039,-483.508934,0.000489,120]
[394172506,1763347841048,-153.459886,0.000489,30]
[394172507,1763347841057,-483.508934,0.000489,120]
[394172508,1763347841066,-151.0,0.000489,120]
[394172509,1763347841076,-151.0,0.000489,120]
[394172510,1763347841084,-151.0,0.000489,120]
[394172511,1763347841093,-151.0,0.000489,120]
[394172512,1763347841173,-151.0,0.000489,120]
[394172513,1763347841182,-202.857609,0.000489,120]
[394172514,1763347841191,-151.0,0.000489,120]
[394172515,1763347841199,-151.0,0.000489,120]
[394172516,1763347841208,-151.0,0.000489,120]
[394172517,1763347841217,-151.0,0.000489,120]
[394172518,1763347841226,-156.400286,0.000489,120]
[394172519,1763347841235,-151.0,0.000489,120]
[394172520,1763347841244,-151.0,0.000489,120]
[394172521,1763347841253,-156.476949,0.000489,120]
[394172522,1763347841262,-154.009917,0.000489,120]
[394172523,1763347841271,-151.0,0.000489,120]
[394172524,1763347841280,-151.0,0.000489,120]
[394172525,1763347841290,-150.0,0.00048929,100]
[394172526,1763347841299,-911.4374923,0.00048932,2]
[394172527,1763347841309,-23411.7554857,0.00048932,2]
[394172528,1763347841318,-151.0,0.00048932,120]
[394172529,1763347841327,-151.0,0.00048932,7]
[394172530,1763347841337,-151.0,0.00048932,120]
[394172531,1763347841346,-151.0,0.00048932,120]
[394172532,1763347841356,-151.0,0.00048932,120]
[394172533,1763347841365,-151.0,0.00048932,120]
[394172534,1763347841374,-151.0,0.00048932,120]
[394172535,1763347841383,-151.0,0.00048932,120]
[394172536,1763347841393,-151.0,0.00048932,120]
[394172537,1763347841402,-151.0,0.00048932,120]
[394172538,1763347841412,-151.0,0.00048932,120]
[394172539,1763347841421,-177.917561,0.00048932,120]
[394172540,1763347841431,-151.0,0.00048932,120]
[394172541,1763347841440,-151.0,0.00048932,120]
[394172542,1763347841450,-151.0,0.00048932,120]
[394172543,1763347841460,-150.0,0.00048971,60]
[394172544,1763347841469,-150.0,0.00048972,3]
[394172545,1763347841478,-150.0,0.00048972,10]
[394172546,1763347841488,-1000.0,0.00048973,10]
[394172547,1763347841497,-150.0,0.00048988,120]
[394172548,1763347841507,-150.0,0.00048988,7]
[394172549,1763347841515,-150.0,0.00048989,4]
[394172550,1763347841524,-151.401774,0.0004899,120]
[394172551,1763347841533,-151.0,0.0004899,120]
[394172552,1763347841543,-151.0,0.0004899,120]
[394172553,1763347841553,-151.0,0.0004899,120]
[394172554,1763347841562,-151.0,0.0004899,30]
[394172555,1763347841572,-152.836371,0.0004899,120]
[394172556,1763347841581,-151.0,0.0004899,30]
[394172557,1763347841591,-151.0,0.0004899,120]
[394172558,1763347841600,-151.0,0.0004899,120]
[394172559,1763347841610,-151.0,0.0004899,120]
[394172560,1763347841619,-156.452658,0.0004899,120]
[394172561,1763347841628,-151.0,0.0004899,120]
[394172562,1763347841638,-151.0,0.0004899,120]
[394172563,1763347841647,-151.0,0.0004899,120]
[394172564,1763347841656,-151.0,0.0004899,120]
[394172565,1763347841666,-151.0,0.0004899,120]
[394172566,1763347841676,-151.0,0.0004899,120]
[394172567,1763347841685,-151.0,0.0004899,120]
[394172568,1763347841694,-155.885854,0.0004899,120]
[394172569,1763347841704,-280.164424,0.0004899,120]
[394172570,1763347841714,-151.0,0.0004899,120]
[394172571,1763347841723,-151.0,0.0004899,120]
[394172572,1763347841732,-151.0,0.0004899,120]
[394172573,1763347841742,-151.0,0.0004899,120]
[394172574,1763347841752,-151.0,0.0004899,120]
[394172575,1763347841761,-208.442531,0.0004899,120]
[394172576,1763347841770,-208.442531,0.0004899,120]
[394172577,1763347841780,-208.442531,0.0004899,120]
[394172578,1763347841793,-208.442531,0.0004899,120]
[394172579,1763347841803,-151.0,0.0004899,120]
[394172580,1763347841812,-251.495585,0.0004899,120]
[394172581,1763347841822,-251.495585,0.0004899,120]
[394172582,1763347841833,-251.495585,0.0004899,120]
[394172583,1763347841842,-251.495585,0.0004899,120]
[394172584,1763347841852,-151.0,0.0004899,120]
[394172585,1763347841863,-151.0,0.0004899,120]
[394172586,1763347841877,-151.0,0.0004899,120]
[394172587,1763347841887,-151.0,0.0004899,120]
[394172588,1763347841898,-155.183638,0.0004899,120]
[394172589,1763347841907,-151.0,0.0004899,120]
[394172590,1763347841918,-151.0,0.0004899,120]
[394172591,1763347841932,-203.592751,0.0004899,120]
[394172592,1763347841942,-181.99971,0.0004899,120]
[394172593,1763347841952,-181.99971,0.0004899,120]
[394172594,1763347841962,-181.99971,0.0004899,120]
[394172595,1763347841973,-181.99971,0.0004899,120]
[394172596,1763347841984,-186.367292,0.0004899,120]
[394172597,1763347841995,-186.367292,0.0004899,120]
[394172598,1763347842005,-186.367292,0.0004899,120]
[394172599,1763347842016,-186.367292,0.0004899,120]
[394172600,1763347842028,-151.0,0.0004899,120]
[394172601,1763347842038,-151.0,0.0004899,120]
[394172602,1763347842047,-151.0,0.0004899,90]
[394172603,1763347842056,-151.0,0.0004899,120]
[394172604,1763347842066,-323.05412787,0.0004899,4]
[394172605,1763347842076,-150.0,0.00048999,2]
[394172606,1763347842086,-44384.66610366,0.00049,2]
[394172607,1763347842102,-69625.47724474,0.00049,2]
[394172608,1763347842114,-8784.3933303,0.00049,2]
[394172609,1763347842124,-33573.24555841,0.00049,2]
[394172610,1763347842138,-21858.95548158,0.00049,2]
[394172611,1763347842149,-32987.89925653,0.00049,2]
[394172612,1763347842160,-19227.72316444,0.00049,2]
[394172613,1763347842171,-16861.96021824,0.00049,2]
[394172622,1763347846905,-151.0,0.0004498,120]
[394172623,1763347846917,-151.0,0.000489,120]
[394172624,1763347846926,-548.35431769,0.00049,2]
[394172625,1763347860826,10000.0,0.0003,3]
[394172631,1763347901112,150.0,0.00033387,2]
[394172632,1763347971261,150.0,0.00033463,2]
[394172634,1763348039106,150.0,0.00032952,2]
[394172635,1763348067674,164.165407,0.00013699,2]
[394172636,1763348067903,164.165407,0.00020187,2]
[394172637,1763348068129,164.165407,0.00026676,2]
[394172638,1763348068330,164.165407,0.00033165,2]
[394172640,1763348108183,150.0,0.00032865,2]
[394172641,1763348126355,19.42804509,0.00034,2]
[394172642,1763348152664,187.53210689,0.00033,2]
[394172643,1763348174382,150.0,0.00032865,2]
[394172644,1763348238998,150.0,0.00032864,2]
[394172647,1763348304214,150.0,0.00032866,2]
[394172648,1763348449509,500.0,0.00032,120]
[394172649,1763348466005,517.0,0.00032,120]
[394172651,1763348593168,5752.1044558,0.00031,2]
[394172654,1763348759488,366.83,0.00032877,120]
[394172655,1763348773209,156.8,0.00038349,120]
[394172656,1763348846190,-500.0,0.00034,120]
[394172657,1763348846213,-150.0,0.00034458,2]
[394172658,1763348846234,-150.0,0.00037591,2]
[394172659,1763348846256,-164.165407,0.00039654,2]
[394172660,1763348846278,-176.0288137,0.00039799,2]
[394172661,1763348846302,-326.95072932,0.0004,120]
[394172662,1763348897677,237.68209745,0.00038349,120]
[394172666,1763348993105,225.85015093,0.00028986,2]
[394172668,1763349027106,150.0,0.00032733,2]
[394172741,1763349037542,-563.69904789,0.00038329,7]
[394172742,1763349037552,-270.79151429,0.00038329,15]
[394172743,1763349037561,-563.69904789,0.00038329,7]
[394172744,1763349037571,-563.69904789,0.00038329,7]
[394172745,1763349037580,-563.69904789,0.00038329,7]
[394172746,1763349037590,-563.69904789,0.00038329,7]
[394172747,1763349037599,-563.69904789,0.00038329,7]
[394172748,1763349037608,-563.69904789,0.00038329,7]
[394172749,1763349037618,-563.69904789,0.00038329,7]
[394172750,1763349037628,-563.69904789,0.00038329,7]
[394172751,1763349037637,-563.69904789,0.00038329,7]
[394172752,1763349037647,-563.69904789,0.00038329,7]
[394172753,1763349037656,-563.69904789,0.00038329,7]
[394172754,1763349037666,-563.69904789,0.00038329,7]
[394172755,1763349037675,-563.69904789,0.00038329,7]
[394172756,1763349037684,-563.69904789,0.00038329,7]
[394172757,1763349037693,-563.69904789,0.00038329,7]
[394172758,1763349037703,-574.97302885,0.00038329,7]
[394172759,1763349037712,-574.97302885,0.00038329,7]
[394172760,1763349037721,-574.97302885,0.00038329,7]
[394172761,1763349037731,-574.97302885,0.00038329,7]
[394172762,1763349037740,-574.97302885,0.00038329,7]
[394172763,1763349037749,-574.97302885,0.00038329,7]
[394172764,1763349037759,-574.97302885,0.00038329,7]
[394172765,1763349037768,-574.97302885,0.00038329,7]
[394172766,1763349037777,-574.97302885,0.00038329,7]
[394172767,1763349037786,-574.97302885,0.00038329,7]
[394172768,1763349037796,-304353.278077,0.0003833,3]
[394172769,1763349037805,-323475.16701043,0.0003834,7]
[394172770,1763349037814,-1097.24809255,0.00038349,20]
[394172771,1763349037824,-150.0,0.0003837,20]
[394172772,1763349037834,-4263.6,0.000384,14]
[394172773,1763349037843,-220.78,0.000384,30]
[394172774,1763349037853,-838.28,0.000384,14]
[394172775,1763349037862,-154.43,0.000384,7]
[394172776,1763349037872,-225.85015093,0.00039169,2]
[394172777,1763349037882,-209.98713641,0.000392,120]
[394172778,1763349037894,-173.04927068,0.0004,120]
[394172779,1763349037904,-150.0,0.00041067,5]
[394172780,1763349037915,-500.0,0.00041096,31]
[394172781,1763349037925,-500.0,0.00041096,31]
[394172782,1763349037934,-500.0,0.00041096,31]
[394172783,1763349037943,-500.0,0.00041096,31]
[394172784,1763349037952,-500.0,0.00041096,31]
[394172785,1763349037962,-323.74572065,0.00041096,31]
[394172786,1763349037972,-2000.0,0.00041439,21]
[394172787,1763349037981,-320.016128,0.00041807,2]
[394172788,1763349037991,-150.0,0.00042915,12]
[394172789,1763349038000,-150.0,0.00043497,31]
[394172790,1763349038010,-150.0,0.00043686,13]
[394172791,1763349038020,-500.0,0.00044,120]
[394172792,1763349038030,-164.165407,0.00046143,2]
[394172793,1763349038040,-497.26421528,0.0004655,2]
[394172794,1763349038051,-895.0755875,0.0004655,2]
[394172795,1763349038061,-654.56351199,0.00046847,2]
[394172796,1763349038072,-150.0,0.00047999,23]
[394172797,1763349038083,-150.0,0.00048499,29]
[394172798,1763349038092,-150.0,0.00048599,14]
[394172799,1763349038102,-155.72,0.000486,49]
[394172800,1763349038111,-155.72,0.00048697,49]
[394172801,1763349038122,-150.0,0.00048698,49]
[394172802,1763349038131,-182.44774045,0.0004879,2]
[394172803,1763349038140,-60870.6556153,0.0004879,4]
[394172804,1763349038150,-87044.30390581,0.000488,120]
[394172805,1763349038160,-1000.0,0.00048871,2]
[394172806,1763349038173,-1000.0,0.00048871,2]
[394172807,1763349038183,-444.24517419,0.00048871,2]
[394172808,1763349038192,-800.0,0.0004888,120]
[394172809,1763349038202,-150.0,0.0004888,120]
[394172810,1763349038211,-150.0,0.00048886,28]
[394172811,1763349038221,-216.42092964,0.00048888,30]
[394172812,1763349038231,-189.565,0.00048889,85]
[394172813,1763349038243,-187.95553136,0.00048897,120]
[394172814,1763349038253,-150.0,0.00048899,15]
[394172815,1763349038263,-289039.82190716,0.000489,2]
[394172828,1763349048413,-2070.16927622,0.000489,2]
[394172829,1763349052015,5000.0,0.00033,2]
[394172830,1763349059784,5000.0,0.00033,2]
[394172831,1763349063563,800.0,0.000253,2]
[394172832,1763349063621,206.3276615,0.00026396,2]
[394172833,1763349111818,462.76447125,0.00038349,120]
[394172838,1763349259575,343.0,0.00026,5]
[394172839,1763349457527,1522.17335982,0.00033,2]
[394172840,1763349465612,3010.51264849,0.00033,2]
[394172841,1763349620168,331.645172,0.00038348,120]
[394172844,1763350009127,-150.0,0.00034398,2]
[394172845,1763350009148,-66.68123857,0.00035,120]
[394172847,1763350071601,5068.0,0.00038347,20]
[394172848,1763350079315,214.46937146,0.00025,2]
[394172850,1763350104087,84371.19326642,0.00038342,120]
[394172851,1763350113165,305.2249777,0.0003099,2]
[394172856,1763350119579,287.07056848,0.0003013,2]
[394172857,1763350119622,161.90469893,0.00024142,2]
[394172858,1763350119647,24234.05160043,0.00024142,2]
[394172859,1763350119670,9584.00512673,0.00024142,2]
[394172860,1763350121140,674.29049269,0.0003022,2]
[394172904,1763350231849,-150.0,0.00032645,2]
[394172906,1763350231859,-542.91500234,0.00034,2]
[394172907,1763350231870,-469.19668356,0.00034,2]
[394172909,1763350231880,-125.31876143,0.00035,120]
[394172911,1763350231891,-444.5791988,0.00035605,5]
[394172913,1763350231900,-150.0,0.00035613,2]
[394172914,1763350231912,-265.91147868,0.0003624,2]
[394172916,1763350231922,-104.01974593,0.0003686,2]
[394172917,1763350231933,-957.39738567,0.0003686,2]
[394172918,1763350231942,-2038.61982105,0.00037,2]
[394172919,1763350231951,-166.93,0.00037037,65]
[394172920,1763350231960,-400.0,0.00037357,2]
[394172921,1763350231970,-1019.36627827,0.000378,2]
[394172922,1763350231979,-150.0,0.00038329,3]
[394172925,1763350231988,-150.0,0.00038369,20]
[394172926,1763350231997,-150.0,0.00038399,7]
[394172927,1763350232006,-300.0,0.00038555,90]
[394172928,1763350232015,-300.0,0.00038555,90]
[394172929,1763350232025,-300.0,0.00038555,90]
[394172930,1763350232034,-300.0,0.00038555,90]
[394172931,1763350232043,-300.0,0.00038555,90]
[394172932,1763350232052,-300.0,0.00038555,90]
[394172933,1763350232062,-300.0,0.00038555,90]
[394172934,1763350232071,-300.0,0.00038555,90]
[394172935,1763350232080,-300.0,0.00038555,90]
[394172936,1763350232091,-300.0,0.00038555,90]
[394172937,1763350232101,-300.0,0.00038555,90]
[394172938,1763350232111,-300.0,0.00038555,90]
[394172939,1763350232121,-300.0,0.00038555,90]
[394172940,1763350232130,-300.0,0.00038555,90]
[394172941,1763350232140,-300.0,0.00038555,90]
[394172942,1763350232150,-150.0,0.00038581,2]
[394172943,1763350232159,-420.73083336,0.000386,2]
[394172944,1763350232168,-500.0,0.000386,5]
[394172945,1763350232178,-502.24314263,0.000386,5]
[394172946,1763350232187,-500.0,0.000386,5]
[394172947,1763350232196,-226.52770137,0.0003897,2]
[394172948,1763350232206,-560.0,0.00039957,5]
[394172949,1763350232215,-400.72968565,0.0004,2]
[394172950,1763350232225,-500.0,0.0004,2]
[394172951,1763350232235,-883.86229398,0.0004,2]
[394172952,1763350232245,-6124.29083047,0.0004,2]
[394172985,1763350237786,-20502.34814842,0.0004,2]
[394172987,1763350237795,-5685.51438339,0.00040243,28]
[394172989,1763350237804,-600.0,0.00040799,90]
[394172991,1763350237813,-150.0,0.00041066,5]
[394172993,1763350237822,-437.0,0.00041096,3]
[394172995,1763350237831,-150.0,0.00041438,21]
[394172997,1763350237840,-150.0,0.00041548,2]
[394172999,1763350237849,-500.0,0.00041808,5]
[394173001,1763350237858,-257.76,0.00042,7]
[394173003,1763350237867,-500.0,0.00042082,7]
[394173005,1763350237876,-500.0,0.0004228,2]
[394173007,1763350237886,-251.06924939,0.0004228,2]
[394173009,1763350237896,-195.82,0.00042458,10]
[394173011,1763350237905,-163.19,0.00042458,10]
[394173013,1763350237914,-541.07770426,0.00042467,31]
[394173015,1763350237924,-313.74952452,0.00042467,31]
[394173017,1763350237933,-355.61454119,0.00042467,31]
[394173019,1763350237943,-378.97498027,0.00042467,31]
[394173021,1763350237951,-368.24627502,0.00042467,31]
[394173023,1763350237960,-500.0,0.00042467,31]
[394173025,1763350237969,-500.0,0.00042467,31]
[394173027,1763350237978,-280.71020091,0.000425,2]
[394173029,1763350237986,-151.0,0.00042542,2]
[394173031,1763350237995,-151.0,0.00042542,2]
[394173033,1763350238004,-151.0,0.00042542,2]
[394173035,1763350238013,-151.0,0.00042542,2]
[394173037,1763350238022,-151.0,0.00042542,2]
[394173039,1763350238032,-151.0,0.00042542,2]
[394173041,1763350238041,-151.0,0.00042542,2]
[394173043,1763350238050,-151.0,0.00042542,2]
[394173045,1763350238059,-151.0,0.00042542,2]
[394173047,1763350238068,-270.73879904,0.00042542,2]
[394173049,1763350238078,-154.97,0.00042548,120]
[394173051,1763350238087,-500.0,0.00042554,2]
[394173053,1763350238096,-815.95,0.0004256,10]
[394173055,1763350238105,-203.159,0.00042569,64]
[394173057,1763350238115,-185.66243053,0.00042569,64]
[394173059,1763350238123,-150.0,0.00042569,120]
[394173061,1763350238132,-566.32,0.00042569,2]
[394173063,1763350238142,-500.0,0.00042569,2]
[394173065,1763350238151,-357.5,0.0004257,30]
[394173067,1763350238161,-297.92,0.0004257,30]
[394173069,1763350238170,-248.26,0.0004257,30]
[394173070,1763350238179,-206.89,0.0004257,30]
[394173073,1763350238189,-279.54,0.0004257,30]
[394173074,1763350238198,-232.95,0.0004257,30]
[394173077,1763350238208,-194.12,0.0004257,30]
[394173078,1763350238217,-161.77,0.0004257,30]
[394173080,1763350238227,-808.88,0.0004257,30]
[394173082,1763350238236,-1541.9,0.0004257,30]
[394173084,1763350238246,-1284.92,0.0004257,30]
[394173086,1763350238255,-1070.77,0.0004257,30]
[394173089,1763350238265,-892.3,0.0004257,30]
[394173090,1763350238274,-743.59,0.0004257,30]
[394173093,1763350238284,-619.66,0.0004257,30]
[394173094,1763350238294,-516.38,0.0004257,30]
[394173096,1763350238303,-101891.374245,0.0004257,3]
[394173098,1763350238312,-1000.0,0.00042578,2]
[394173100,1763350238321,-1000.0,0.00042578,2]
[394173102,1763350238330,-1000.0,0.00042578,2]
[394173104,1763350238339,-1000.0,0.00042578,2]
[394173106,1763350238349,-1016.95258603,0.00042578,2]
[394173108,1763350238358,-100000.0,0.0004258,120]
[394173110,1763350238367,-154.43,0.000426,14]
[394173112,1763350238377,-700.0,0.0004263,10]
[394173114,1763350238386,-50945.6871226,0.0004266,3]
[394173116,1763350238396,-5019.5498017,0.0004267,2]
[394173118,1763350238406,-3438.900656,0.0004267,2]
[394173120,1763350238416,-500.0,0.00042673,10]
[394173122,1763350238426,-518.60290265,0.00042673,10]
[394173125,1763350238436,-150.0,0.00042673,10]
[394173126,1763350238446,-675.36576202,0.00042692,5]
[394173128,1763350238455,-783.0,0.00042738,5]
[394173130,1763350238464,-500.0,0.00042828,2]
[394173132,1763350238473,-150.0,0.00042914,12]
[394173134,1763350238482,-157.45513291,0.00042942,2]
[394173136,1763350238491,-41143.01552075,0.0004299,2]
[394173138,1763350238500,-500.0,0.00043102,2]
[394173140,1763350238509,-1778.31679522,0.00043139,5]
[394173151,1763350238601,-101891.374245,0.0004314,3]
[394173153,1763350238613,-90000.0,0.0004315,119]
[394173155,1763350238622,-151.0,0.0004315,120]